bitfinex/quotes_BTCUSD_20220211
["timestamp","ask_amount","ask_price","bid_price","bid_amount"]
[1644564924302,0.001,43315.0,43314.0,0.90473599]
[1644564925303,0.001,43315.0,43314.0,0.6249]
[1644564925709,0.001,43315.0,43313.0,0.32397233]
[1644564925906,0.001,43315.0,43313.0,0.00146533]
[1644564926109,0.322507,43314.0,43313.0,0.00146533]
[1644564928251,0.60885342,43314.0,43313.0,0.00146533]
[1644564929250,0.92175017,43314.0,43313.0,0.00146533]
[1644564929450,1.66067017,43314.0,43313.0,6.533e-05]
[1644564929648,1.66067017,43314.0,43313.0,0.00150503]
[1644564929649,1.79191044,43314.0,43313.0,0.00150503]
[1644564930249,1.66067017,43314.0,43313.0,0.00150503]
[1644564934101,1.79183281,43314.0,43313.0,0.00150503]
[1644564934700,0.01253,43313.0,43312.0,0.02]
[1644564934904,1.15829361,43313.0,43312.0,0.02]
[1644564935102,1.28945625,43313.0,43312.0,0.02]
[1644564938355,1.23945625,43313.0,43312.0,0.02]
[1644564938557,0.820708,43313.0,43312.0,0.02]
[1644564939604,0.82185139,43313.0,43312.0,0.02]
[1644564941116,0.70629339,43313.0,43312.0,0.02]
[1644564941317,0.70629339,43313.0,43312.0,0.0663]
[1644564941318,0.69376339,43313.0,43312.0,0.0663]
[1644564941612,0.69376339,43313.0,43312.0,0.388807]
[1644564942309,0.69376339,43313.0,43312.0,0.71064674]
[1644564942508,0.69376339,43313.0,43312.0,0.81064674]
[1644564943155,0.69376339,43313.0,43312.0,0.488807]
[1644564943553,0.69376339,43313.0,43312.0,0.77344914]
[1644564945955,0.69376339,43313.0,43312.0,0.488807]
[1644564947301,0.69376339,43313.0,43312.0,0.388807]
[1644564950751,0.69376339,43313.0,43312.0,0.488807]
[1644564951058,0.69376339,43313.0,43312.0,0.604304]
[1644564951059,0.11628473,43313.0,43312.0,0.604304]
[1644564951248,0.11628473,43313.0,43312.0,0.654304]
[1644564951548,0.11628473,43313.0,43312.0,0.94263351]
[1644564953349,0.11628473,43313.0,43312.0,0.654304]
[1644564957103,0.02,43324.0,43322.0,0.15]
[1644564957305,0.02,43324.0,43323.0,0.45208349]
[1644564961601,0.02,43324.0,43323.0,0.368807]
[1644564961801,0.02,43324.0,43323.0,0.0463]
[1644564962603,0.342507,43324.0,43323.0,0.0463]
[1644564963404,0.03253,43324.0,43323.0,0.0463]
[1644564963603,0.342507,43324.0,43323.0,0.0463]
[1644564964503,0.342507,43324.0,43323.0,0.11367536]
[1644564966573,0.342507,43324.0,43323.0,0.0663]
[1644564966779,0.342507,43324.0,43323.0,0.02]
[1644564966978,0.62754051,43324.0,43323.0,0.02]
[1644564967178,0.342507,43324.0,43323.0,0.02]
[1644564967377,1.034967,43324.0,43323.0,0.02]
[1644564967977,1.16620479,43324.0,43323.0,0.02]
[1644564969107,1.16620479,43324.0,43323.0,0.02163959]
[1644564972610,1.21620479,43324.0,43323.0,0.02163959]
[1644564976260,1.16620479,43324.0,43323.0,0.02163959]
[1644564976903,1.21620479,43324.0,43323.0,0.02163959]
[1644564978104,1.16620479,43324.0,43323.0,0.02163959]
[1644564980354,1.16620479,43324.0,43323.0,0.02155835]
[1644564981854,1.21620479,43324.0,43323.0,0.02155835]
[1644564983055,1.16620479,43324.0,43323.0,0.02155835]
[1644564983859,1.21620479,43324.0,43323.0,0.02155835]
[1644564984105,1.16620479,43324.0,43323.0,0.02155835]
[1644564984807,1.16620479,43324.0,43323.0,0.02]
[1644564988652,1.21620479,43324.0,43323.0,0.02]
[1644564989453,1.16620479,43324.0,43323.0,0.02]
[1644565003952,1.16620479,43324.0,43323.0,0.0199113]
[1644565005155,0.84369779,43324.0,43323.0,0.3424183]
[1644565005558,0.71246,43324.0,43323.0,0.4924183]
[1644565006056,0.71246,43324.0,43323.0,0.5387183]
[1644565007306,0.71246,43324.0,43323.0,0.81699884]
[1644565008403,0.71246,43324.0,43323.0,0.5387183]
[1644565012960,0.7123732,43324.0,43323.0,0.5387183]
[1644565013163,0.7123732,43324.0,43323.0,0.3887183]
[1644565014806,0.7123732,43324.0,43323.0,0.39036837]
[1644565015209,0.7114732,43324.0,43323.0,0.39036837]
[1644565015407,0.7106632,43324.0,43323.0,0.39036837]
[1644565015607,0.7106632,43324.0,43323.0,0.54036837]
[1644565016606,0.7106632,43324.0,43323.0,0.39036837]
[1644565017209,0.7106632,43324.0,43323.0,0.59036837]
[1644565017854,0.7106632,43324.0,43323.0,0.64036837]
[1644565018855,0.7106632,43324.0,43323.0,0.74036837]
[1644565020258,0.7106632,43324.0,43323.0,0.59036837]
[1644565020460,0.7106632,43324.0,43323.0,0.64036837]
[1644565021707,0.7106632,43324.0,43323.0,0.59036837]
[1644565021905,0.7106632,43324.0,43323.0,0.54036837]
[1644565022106,0.7086632,43324.0,43323.0,0.59036837]
[1644565022309,0.6966632,43324.0,43323.0,0.79036837]
[1644565022510,0.3433082,43324.0,43323.0,0.79011025]
[1644565022709,0.3423082,43324.0,43323.0,0.79011025]
[1644565023109,0.001,43325.0,43324.0,0.322507]
[1644565023310,0.001,43325.0,43324.0,0.368807]
[1644565023710,0.001,43325.0,43324.0,0.518807]
[1644565025356,0.001,43325.0,43324.0,0.618807]
[1644565025557,0.001,43325.0,43324.0,0.568807]
[1644565026758,0.001,43325.0,43324.0,0.518807]
[1644565027361,0.001,43325.0,43324.0,0.368807]
[1644565028766,0.057739,43331.0,43324.0,0.368807]
[1644565028767,0.08013865,43342.0,43325.0,1.272507]
[1644565029028,0.08013865,43342.0,43340.0,0.15]
[1644565029328,0.004,43342.0,43341.0,0.0463]
[1644565030224,0.004,43342.0,43341.0,0.368807]
[1644565030525,0.004,43342.0,43341.0,0.0463]
[1644565031324,0.004,43342.0,43341.0,0.368807]
[1644565031625,0.004,43342.0,43341.0,0.0463]
[1644565031829,0.326507,43342.0,43334.0,0.11544873]
[1644565032026,0.326507,43342.0,43335.0,0.322507]
[1644565032027,0.004,43342.0,43335.0,0.322507]
[1644565032765,0.0006647,43341.0,43337.0,0.322507]
[1644565032958,0.0006647,43341.0,43339.0,0.322507]
[1644565033757,0.004,43342.0,43339.0,0.342507]
[1644565033957,0.00466469,43342.0,43339.0,0.342507]
[1644565034157,0.00466469,43342.0,43340.0,0.322507]
[1644565034560,0.322507,43341.0,43339.0,0.02]
[1644565034759,0.01253,43340.0,43339.0,0.02]
[1644565034958,0.004,43342.0,43339.0,0.02503403]
[1644565035162,0.01253,43341.0,43339.0,0.02503403]
[1644565036711,0.120261,43341.0,43339.0,0.02503403]
[1644565036914,0.668807,43340.0,43339.0,0.02503403]
[1644565037108,1.061017,43340.0,43339.0,0.02]
[1644565037507,1.15698722,43340.0,43339.0,0.02]
[1644565039111,1.4707376,43340.0,43339.0,0.02]
[1644565039311,1.4207376,43340.0,43339.0,0.02]
[1644565041561,1.4670376,43340.0,43339.0,0.02]
[1644565047857,0.22568474,43346.0,43340.0,0.95]
[1644565048083,0.12468474,43345.0,43341.0,0.3]
[1644565048262,0.001,43346.0,43344.0,0.372177]
[1644565048460,0.001,43346.0,43345.0,0.368477]
[1644565048858,0.001,43346.0,43345.0,0.668477]
[1644565049058,0.26767769,43346.0,43345.0,0.0463]
[1644565049258,0.26767769,43346.0,43345.0,0.368477]
[1644565049259,0.001,43346.0,43345.0,0.368477]
[1644565049458,0.001,43346.0,43345.0,0.0463]
[1644565049862,0.001,43346.0,43339.0,0.02]
[1644565050065,0.21686117,43345.0,43339.0,0.02]
[1644565050459,0.30146973,43344.0,43339.0,0.02]
[1644565050860,0.30146973,43344.0,43340.0,0.06235142]
[1644565051363,0.001,43346.0,43340.0,0.06235142]
[1644565052106,0.00066434,43345.0,43340.0,0.06235142]
[1644565052306,0.31649805,43343.0,43340.0,0.06235142]
[1644565052611,0.31649805,43343.0,43340.0,0.00462659]
[1644565053406,0.0006788,43344.0,43340.0,0.00462659]
[1644565053610,0.0006788,43344.0,43343.0,0.372177]
[1644565054209,0.001,43346.0,43343.0,0.372177]
[1644565054410,0.002,43348.0,43345.0,0.3371062]
[1644565054612,0.01,43349.0,43347.0,0.05]
[1644565054811,0.01,43349.0,43348.0,0.368477]
[1644565055462,0.0001,43349.0,43348.0,0.368477]
[1644565056863,0.0001,43349.0,43348.0,0.0463]
[1644565057263,0.007681,43349.0,43348.0,0.0463]
[1644565057464,0.05838362,43351.0,43348.0,0.0463]
[1644565057664,0.00066162,43351.0,43348.0,0.0463]
[1644565057967,0.33670717,43352.0,43348.0,0.0463]
[1644565058166,0.00066162,43351.0,43348.0,0.0463]
[1644565058363,0.007691,43351.0,43348.0,0.0463]
[1644565058563,0.33436879,43352.0,43347.0,0.00462659]
[1644565058764,0.007691,43356.0,43347.0,0.00462659]
[1644565059007,0.04352479,43357.0,43347.0,0.00925318]
[1644565059008,0.11735095,43357.0,43347.0,0.00925318]
[1644565059209,0.065406,43356.0,43348.0,0.05771656]
[1644565059411,0.007691,43355.0,43348.0,0.05771656]
[1644565060209,0.18634607,43352.0,43348.0,0.05771656]
[1644565060416,0.36299197,43356.0,43348.0,0.05771656]
[1644565060417,0.007691,43351.0,43348.0,0.05771656]
[1644565060611,0.007691,43353.0,43348.0,0.05771656]
[1644565061012,0.057716,43354.0,43348.0,0.05771656]
[1644565061212,0.30527697,43356.0,43348.0,0.05771656]
[1644565061213,0.007691,43355.0,43348.0,0.05771656]
[1644565061512,0.057717,43354.0,43348.0,0.05771656]
[1644565061711,0.057717,43354.0,43347.0,0.00462659]
[1644565061712,0.00838865,43353.0,43347.0,0.00462659]
[1644565061912,0.00069765,43353.0,43347.0,0.00462659]
[1644565062513,0.057717,43352.0,43347.0,0.00462659]
[1644565062954,0.057717,43352.0,43347.0,0.06233942]
[1644565063157,0.007691,43351.0,43347.0,0.05771283]
[1644565063555,0.057717,43352.0,43347.0,0.05771283]
[1644565065358,0.25583974,43348.0,43347.0,0.05771283]
[1644565065559,0.25583974,43348.0,43347.0,0.322113]
[1644565065763,0.057717,43352.0,43347.0,0.322113]
[1644565066714,0.29076155,43349.0,43348.0,0.322113]
[1644565067014,0.34847855,43349.0,43347.0,0.02]
[1644565067215,0.11613363,43353.0,43347.0,0.02]
[1644565067415,0.007691,43352.0,43347.0,0.02]
[1644565067616,0.115436,43353.0,43347.0,0.02]
[1644565067814,0.007691,43352.0,43347.0,0.02]
[1644565068016,0.11613361,43353.0,43347.0,0.02]
[1644565068229,0.27685446,43351.0,43347.0,0.02]
[1644565069416,0.00069763,43353.0,43347.0,0.02]
[1644565069817,0.35837287,43357.0,43347.0,0.02]
[1644565069818,0.24102192,43357.0,43347.0,0.02]
[1644565070017,0.007691,43356.0,43347.0,0.02]
[1644565070261,0.24102192,43357.0,43347.0,0.02]
[1644565070262,0.007691,43352.0,43347.0,0.02]
[1644565070656,0.00066423,43353.0,43347.0,0.02]
[1644565070966,0.053991,43352.0,43347.0,0.02]
[1644565071261,0.065426,43350.0,43347.0,0.02]
[1644565071460,0.73835,43349.0,43347.0,0.02]
[1644565071659,0.123165,43348.0,43347.0,0.02]
[1644565071959,0.911515,43348.0,43347.0,0.02]
[1644565072159,0.861515,43348.0,43347.0,0.02]
[1644565072859,0.97886595,43348.0,43347.0,0.02]
[1644565073058,0.861515,43348.0,43347.0,0.02]
[1644565074315,0.861515,43348.0,43347.0,0.01939]
[1644565074915,0.97886595,43348.0,43347.0,0.01939]
[1644565075517,1.26530553,43348.0,43347.0,0.01939]
[1644565075816,0.97886595,43348.0,43347.0,0.01939]
[1644565076215,1.02825135,43348.0,43347.0,0.01939]
[1644565077014,1.31155643,43348.0,43347.0,0.01939]
[1644565077859,1.26525643,43348.0,43347.0,0.01939]
[1644565078663,1.32299048,43348.0,43347.0,0.01939]
[1644565078858,1.27299048,43348.0,43347.0,0.01939]
[1644565079061,1.32299048,43348.0,43347.0,0.01939]
[1644565079758,1.27299048,43348.0,43347.0,0.01939]
[1644565080063,0.9896854,43348.0,43347.0,0.01939]
[1644565080262,1.0896854,43348.0,43347.0,0.01939]
[1644565081508,0.057734,43337.0,43332.0,0.4442]
[1644565081712,0.057734,43337.0,43333.0,0.32221]
[1644565081910,0.057734,43337.0,43328.0,0.05773613]
[1644565082111,0.057734,43337.0,43329.0,0.05]
[1644565082310,0.057734,43337.0,43331.0,0.32221]
[1644565083211,0.057734,43337.0,43330.0,0.11934638]
[1644565083411,0.057734,43337.0,43332.0,0.00018612]
[1644565083612,0.007061,43336.0,43332.0,0.00018612]
[1644565083815,0.057737,43335.0,43332.0,0.00018612]
[1644565084413,0.057737,43335.0,43330.0,0.00454638]
[1644565084612,0.057737,43335.0,43331.0,0.32239613]
[1644565084811,0.34195178,43335.0,43331.0,0.32239613]
[1644565085460,0.057737,43335.0,43331.0,0.32239613]
[1644565085658,0.057737,43335.0,43331.0,0.32221]
[1644565085858,0.057737,43335.0,43331.0,0.32282889]
[1644565086663,0.307061,43334.0,43331.0,0.00061889]
[1644565086862,0.307061,43334.0,43329.0,0.00527674]
[1644565086863,0.057743,43333.0,43329.0,0.00527674]
[1644565087060,0.007061,43332.0,43331.0,0.00066145]
[1644565087261,1.099111,43332.0,43331.0,0.00066145]
[1644565087459,1.32180326,43332.0,43331.0,0.00066145]
[1644565087660,1.55286842,43332.0,43331.0,0.00066145]
[1644565088060,1.55286842,43332.0,43330.0,0.00497089]
[1644565088259,0.064819,43331.0,43330.0,0.00497089]
[1644565088559,0.756869,43331.0,43330.0,0.00497089]
[1644565089114,1.04835314,43331.0,43330.0,0.00497089]
[1644565089513,1.14835314,43331.0,43330.0,0.00497089]
[1644565089713,1.26362586,43331.0,43330.0,0.00497089]
[1644565089913,1.26362586,43331.0,43316.0,0.125]
[1644565090214,0.057759,43323.0,43316.0,0.125]
[1644565090414,0.057759,43323.0,43316.0,0.31221]
[1644565090614,0.33916791,43319.0,43316.0,0.32232]
[1644565091015,0.017044,43321.0,43315.0,0.05]
[1644565091213,0.28767887,43322.0,43316.0,0.32232]
[1644565091418,0.28767887,43322.0,43315.0,0.05]
[1644565091419,0.05776,43319.0,43315.0,0.05]
[1644565091617,0.05776,43319.0,43316.0,0.32232]
[1644565091815,0.11552,43319.0,43317.0,0.00069757]
[1644565092217,0.05776,43318.0,43317.0,0.00069757]
[1644565092415,0.05776,43318.0,43317.0,0.32301757]
[1644565092869,0.05776,43318.0,43317.0,0.32232]
[1644565093070,0.05776,43318.0,43316.0,0.32727443]
[1644565093669,0.05776,43318.0,43316.0,0.00495443]
[1644565094273,0.017044,43317.0,43316.0,0.00495443]
[1644565095572,0.05776,43318.0,43317.0,0.32232]
[1644565095773,0.05775,43320.0,43317.0,0.32232]
[1644565095971,0.05775,43320.0,43318.0,0.07281163]
[1644565096173,0.05775,43320.0,43319.0,0.32232]
[1644565096816,0.05775,43320.0,43318.0,0.07281163]
[1644565097013,0.05775,43320.0,43318.0,0.07819799]
[1644565097414,0.05775,43320.0,43319.0,0.32232]
[1644565097815,0.05775,43320.0,43319.0,0.37232]
[1644565098414,0.05775,43320.0,43319.0,0.05]
[1644565098816,0.05775,43320.0,43319.0,0.37232]
[1644565102463,0.05775,43320.0,43319.0,0.05]
[1644565102665,0.05747233,43320.0,43319.0,0.05]
[1644565102866,0.07451633,43320.0,43319.0,0.05]
[1644565104817,0.05747233,43320.0,43319.0,0.05]
[1644565105011,0.07451633,43320.0,43319.0,0.05]
[1644565105213,0.05747233,43320.0,43319.0,0.05]
[1644565106014,0.07497584,43322.0,43319.0,0.05]
[1644565106213,0.01627063,43321.0,43319.0,0.05]
[1644565106413,0.01627063,43321.0,43320.0,0.00516884]
[1644565106614,0.01627063,43321.0,43320.0,0.00276884]
[1644565107114,0.13178863,43321.0,43320.0,0.00276884]
[1644565108764,0.12554077,43321.0,43320.0,0.00276884]
[1644565114414,0.35065717,43321.0,43320.0,0.00276884]
[1644565115017,0.6332423,43321.0,43320.0,0.00276884]
[1644565115967,0.6332423,43321.0,43314.0,0.00025822]
[1644565116166,0.057762,43319.0,43313.0,0.00025822]
[1644565116367,0.057761,43318.0,43312.0,0.05776093]
[1644565116565,0.33639786,43318.0,43312.0,0.00025822]
[1644565116866,0.31985594,43316.0,43312.0,0.00025822]
[1644565117165,0.05,43316.0,43313.0,0.00061321]
[1644565117367,0.32863686,43318.0,43313.0,0.00061321]
[1644565117568,0.010019,43317.0,43313.0,0.00061321]
[1644565117966,0.27863686,43318.0,43313.0,0.00061321]
[1644565118164,0.057762,43315.0,43313.0,0.05775975]
[1644565118367,0.010019,43314.0,43313.0,0.05837296]
[1644565118765,0.057762,43315.0,43313.0,0.05837296]
[1644565119210,0.057762,43315.0,43313.0,0.05775975]
[1644565119612,0.057762,43315.0,43313.0,0.05801797]
[1644565121012,0.057762,43315.0,43313.0,0.00025822]
[1644565121212,0.057762,43315.0,43312.0,0.00615037]
[1644565121413,0.057762,43315.0,43312.0,0.00338153]
[1644565121612,0.057762,43315.0,43312.0,0.00276884]
[1644565121813,0.057762,43315.0,43313.0,0.322346]
[1644565122012,0.057762,43315.0,43314.0,0.322346]
[1644565122215,0.057762,43315.0,43314.0,0.00025822]
[1644565122411,0.057762,43315.0,43314.0,0.322346]
[1644565122613,0.057762,43315.0,43314.0,0.32260422]
[1644565124265,0.057762,43315.0,43314.0,0.32433169]
[1644565124468,0.057762,43315.0,43314.0,0.00198569]
[1644565126610,0.067781,43315.0,43314.0,0.00198569]
[1644565127009,0.057762,43315.0,43314.0,0.00198569]
[1644565127812,0.067781,43315.0,43314.0,0.00198569]
[1644565128016,0.38079112,43315.0,43314.0,0.00198569]
[1644565129212,0.38079112,43315.0,43314.0,0.00025822]
[1644565129411,0.057762,43315.0,43313.0,0.00752337]
[1644565129613,0.010019,43314.0,43313.0,0.00752337]
[1644565130271,0.010019,43314.0,43313.0,0.00164433]
[1644565131463,0.010019,43314.0,43313.0,0.00190255]
[1644565132764,0.057762,43313.0,43311.0,0.04804491]
[1644565132965,0.067781,43313.0,43311.0,0.04804491]
[1644565133368,0.057762,43313.0,43312.0,0.05481389]
[1644565133564,0.057762,43313.0,43312.0,0.05507271]
[1644565134113,0.057762,43313.0,43312.0,0.05025882]
[1644565134916,0.057762,43313.0,43312.0,0.00025882]
[1644565135115,0.057762,43313.0,43312.0,0.05]
[1644565135419,0.057762,43313.0,43312.0,0.00025882]
[1644565135616,0.057762,43313.0,43311.0,0.00483436]
[1644565136818,0.057762,43313.0,43311.0,0.06259518]
[1644565136819,0.09563771,43312.0,43311.0,0.06259518]
[1644565137417,0.09563771,43312.0,43311.0,0.06233636]
[1644565137617,0.09563771,43312.0,43311.0,0.06259518]
[1644565138068,0.09563771,43312.0,43311.0,0.05801964]
[1644565138271,0.09563771,43312.0,43311.0,0.05776082]
[1644565139068,0.057762,43313.0,43311.0,0.05776082]
[1644565139469,0.057762,43313.0,43311.0,0.05801964]
[1644565139667,0.00104538,43312.0,43311.0,0.05801964]
[1644565141914,0.00076755,43312.0,43311.0,0.05801964]
[1644565142315,0.00026794,43312.0,43311.0,0.05801964]
[1644565143215,0.27480123,43312.0,43311.0,0.05801964]
[1644565144015,0.00026794,43312.0,43311.0,0.05801964]
[1644565144417,0.00026794,43312.0,43311.0,0.00025882]
[1644565144618,0.057761,43311.0,43310.0,0.0627594]
[1644565144817,0.057761,43311.0,43310.0,0.38484658]
[1644565145117,0.057761,43311.0,43310.0,0.3851054]
[1644565145575,0.057761,43311.0,43310.0,0.38036435]
[1644565147279,0.057761,43311.0,43310.0,0.00025882]
[1644565147478,0.010019,43310.0,43309.0,0.00998214]
[1644565147675,0.010019,43310.0,43309.0,0.00525197]
[1644565149813,0.010019,43310.0,43309.0,0.00025882]
[1644565150014,0.07791949,43310.0,43308.0,0.06282925]
[1644565150414,0.010019,43309.0,43308.0,0.06282925]
[1644565150615,0.06790049,43310.0,43308.0,0.06282925]
[1644565150816,0.010019,43309.0,43308.0,0.06257043]
[1644565151014,0.010019,43309.0,43308.0,0.06282925]
[1644565151215,0.06790049,43310.0,43308.0,0.06282925]
[1644565151414,0.010019,43309.0,43308.0,0.06282925]
[1644565151619,0.010019,43309.0,43308.0,0.0580202]
[1644565152017,0.07260142,43310.0,43308.0,0.0580202]
[1644565152864,0.08262042,43310.0,43308.0,0.0580202]
[1644565153064,0.07260142,43310.0,43308.0,0.0580202]
[1644565153563,0.06790049,43310.0,43308.0,0.0580202]
[1644565153765,0.010019,43309.0,43308.0,0.0580202]
[1644565153965,0.06790049,43310.0,43308.0,0.0580202]
[1644565154167,0.010019,43309.0,43308.0,0.0580202]
[1644565154365,0.01146339,43309.0,43308.0,0.0580202]
[1644565154766,0.01146339,43309.0,43308.0,0.3803662]
[1644565155266,0.01146339,43309.0,43308.0,0.00025882]
[1644565155466,0.01146339,43309.0,43308.0,0.322346]
[1644565155666,0.01146339,43309.0,43308.0,0.00025882]
[1644565155867,0.01146339,43309.0,43308.0,0.322346]
[1644565156069,0.01146339,43309.0,43308.0,0.00025882]
[1644565156270,0.01146339,43309.0,43307.0,0.00525031]
[1644565156721,0.01146339,43309.0,43308.0,0.322346]
[1644565156918,0.01146339,43309.0,43308.0,0.32260482]
[1644565157717,0.06922439,43309.0,43308.0,0.32260482]
[1644565159123,0.06922439,43309.0,43308.0,0.322346]
[1644565159324,0.06789949,43309.0,43308.0,0.322346]
[1644565159522,0.01013849,43309.0,43308.0,0.322346]
[1644565161169,0.01013849,43309.0,43308.0,0.368646]
[1644565163274,0.01013849,43309.0,43308.0,0.322346]
[1644565164416,0.01146339,43309.0,43308.0,0.322346]
[1644565164815,0.01146339,43309.0,43308.0,0.368646]
[1644565172916,0.01146339,43309.0,43308.0,0.0463]
[1644565174917,0.01146339,43309.0,43308.0,0.04655874]
[1644565176864,0.12699739,43309.0,43308.0,0.04655874]
[1644565177264,0.01146339,43309.0,43308.0,0.04655874]
[1644565178765,0.02148239,43309.0,43308.0,0.04655874]
[1644565179822,0.02148239,43309.0,43308.0,0.04649583]
[1644565180623,0.02148239,43309.0,43308.0,0.00025874]
[1644565180922,0.02148239,43309.0,43307.0,0.06292424]
[1644565180923,0.02148239,43309.0,43307.0,0.06318298]
[1644565181125,0.06922639,43309.0,43307.0,0.06318298]
[1644565181724,0.06922639,43309.0,43307.0,0.05801948]
[1644565182225,0.010019,43308.0,43307.0,0.05801948]
[1644565182525,0.06922639,43309.0,43307.0,0.00025874]
[1644565182770,0.010019,43308.0,43306.0,0.07550025]
[1644565182970,0.02015749,43308.0,43307.0,0.00025874]
[1644565183169,0.01013849,43308.0,43306.0,0.12205899]
[1644565183369,0.01013849,43308.0,43306.0,0.12180025]
[1644565183568,0.01013849,43308.0,43307.0,0.322346]
[1644565183769,0.01013849,43308.0,43306.0,0.11724413]
[1644565183968,0.01013849,43308.0,43307.0,0.00025874]
[1644565184170,0.01013849,43308.0,43307.0,0.322346]
[1644565184370,0.01013849,43308.0,43307.0,0.32260474]
[1644565184770,0.01013849,43308.0,43307.0,0.00025874]
[1644565184971,0.01013849,43308.0,43307.0,0.322346]
[1644565185169,0.01013849,43308.0,43307.0,0.00025874]
[1644565185372,0.01013849,43308.0,43307.0,0.322346]
[1644565185570,0.01013849,43308.0,43307.0,0.00025874]
[1644565185769,0.01013849,43308.0,43307.0,0.322346]
[1644565185971,0.01013849,43308.0,43307.0,0.00025874]
[1644565186172,0.01013849,43308.0,43307.0,0.322346]
[1644565186372,0.01013849,43308.0,43307.0,0.00025874]
[1644565186618,0.062857,43309.0,43308.0,0.9]
[1644565186823,0.17328,43328.0,43308.0,0.9]
[1644565186824,0.3942446,43317.0,43311.0,0.322346]
[1644565187023,0.44330026,43327.0,43317.0,0.40667219]
[1644565187024,0.14270275,43327.0,43317.0,0.40667219]
[1644565187322,0.55877326,43337.0,43326.0,0.08404088]
[1644565187524,0.8069006,43331.0,43327.0,0.372346]
[1644565187821,0.8069006,43331.0,43328.0,0.0463]
[1644565187822,0.37268807,43329.0,43328.0,0.0463]
[1644565188021,0.37237573,43329.0,43328.0,0.0463]
[1644565188420,0.37237573,43329.0,43325.0,0.0463]
[1644565188421,0.38239473,43329.0,43325.0,0.0463]
[1644565188621,0.010019,43328.0,43325.0,0.0463]
[1644565188817,0.39419274,43326.0,43325.0,0.0463]
[1644565189019,0.6563239,43326.0,43325.0,0.0463]
[1644565189220,0.7063239,43326.0,43325.0,0.0463]
[1644565189821,0.26213116,43326.0,43325.0,0.0463]
[1644565192371,0.010019,43326.0,43325.0,0.0463]
[1644565192571,0.50904022,43328.0,43325.0,0.0463]
[1644565192572,0.11484748,43328.0,43325.0,0.0463]
[1644565192773,0.11484748,43330.0,43328.0,0.322346]
[1644565192971,0.11484748,43330.0,43329.0,0.0463]
[1644565193174,0.69205,43331.0,43329.0,0.368646]
[1644565193370,0.69205,43331.0,43329.0,0.468646]
[1644565193671,0.69205,43331.0,43330.0,0.44906853]
[1644565193869,0.69205,43331.0,43330.0,0.49536853]
[1644565194119,0.69205,43331.0,43330.0,0.418646]
[1644565197968,0.69205,43331.0,43330.0,0.0963]
[1644565198165,0.69205,43331.0,43330.0,0.0463]
[1644565198567,0.69205,43331.0,43329.0,0.005094]
[1644565198965,0.33117773,43330.0,43329.0,0.005094]
[1644565199965,0.33117773,43330.0,43328.0,0.00576524]
[1644565200172,0.69205,43331.0,43328.0,0.005094]
[1644565200369,0.69205,43331.0,43330.0,0.05]
[1644565201814,0.69194181,43331.0,43330.0,0.05]
[1644565203315,0.69194181,43331.0,43330.0,1.05]
[1644565203518,0.69194181,43331.0,43330.0,1.372346]
[1644565204216,0.69194181,43331.0,43330.0,1.322346]
[1644565204418,0.69194181,43331.0,43330.0,1.522346]
[1644565204621,0.69194181,43331.0,43330.0,1.572346]
[1644565204817,0.69194181,43331.0,43330.0,1.59911197]
[1644565205018,0.34561381,43331.0,43330.0,1.59911197]
[1644565205279,0.34561381,43331.0,43330.0,1.518646]
[1644565205473,0.34561381,43331.0,43330.0,1.468646]
[1644565205872,0.3,43341.0,43333.0,0.05772413]
[1644565206076,0.24346375,43342.0,43334.0,0.0463]
[1644565206273,0.33909335,43339.0,43335.0,0.05]
[1644565206474,0.33909335,43339.0,43335.0,0.13035331]
[1644565206874,0.33909335,43339.0,43335.0,0.23807832]
[1644565207075,0.33909335,43339.0,43336.0,0.11545469]
[1644565207276,0.11337025,43344.0,43336.0,0.16545469]
[1644565207477,0.3964,43345.0,43343.0,0.05]
[1644565207478,0.11337025,43345.0,43343.0,0.05]
[1644565207678,0.010019,43344.0,43343.0,0.05]
[1644565207977,0.11337025,43345.0,43335.0,0.13057613]
[1644565207978,0.26174414,43342.0,43341.0,0.05]
[1644565208178,0.26174414,43342.0,43341.0,0.115438]
[1644565208377,0.26174414,43342.0,43335.0,0.12077773]
[1644565208579,0.26174414,43342.0,43335.0,0.17055491]
[1644565208778,0.26174414,43342.0,43339.0,0.00070274]
[1644565209013,0.35978395,43340.0,43339.0,0.05843574]
[1644565209312,0.36980295,43340.0,43339.0,0.05843574]
[1644565209915,0.35978395,43340.0,43339.0,0.057733]
[1644565210517,0.36980295,43340.0,43339.0,0.057733]
[1644565211314,0.36980295,43340.0,43338.0,0.2282902]
[1644565211515,0.010019,43339.0,43338.0,0.2282902]
[1644565211716,0.35978395,43340.0,43338.0,0.1782902]
[1644565211915,0.010019,43339.0,43338.0,0.1833842]
[1644565212116,0.35978395,43340.0,43338.0,0.120562]
[1644565212317,0.010019,43339.0,43338.0,0.17829153]
[1644565212515,0.33980295,43340.0,43338.0,0.17829153]
[1644565213362,0.39253595,43340.0,43338.0,0.17829153]
[1644565213765,0.34425212,43339.0,43338.0,0.13308202]
[1644565214161,0.34425212,43339.0,43338.0,0.12798802]
[1644565214361,0.34515614,43339.0,43338.0,0.12798802]
[1644565214765,0.34515614,43339.0,43338.0,0.01252002]
[1644565214963,0.02549387,43339.0,43338.0,0.01252002]
[1644565216619,0.02549387,43339.0,43337.0,0.06282295]
[1644565216819,0.34426082,43338.0,43337.0,0.06282295]
[1644565217820,0.34426082,43338.0,43337.0,0.005094]
[1644565218021,0.34426082,43338.0,43336.0,0.00572178]
[1644565218223,0.34426082,43338.0,43336.0,0.005094]
[1644565218422,0.34426082,43338.0,43336.0,0.06282298]
[1644565218820,0.00090402,43339.0,43336.0,0.06282298]
[1644565219023,0.00090402,43339.0,43336.0,0.005094]
[1644565220272,0.00090402,43339.0,43336.0,0.05772961]
[1644565222970,0.00090402,43339.0,43336.0,0.11545661]
[1644565223170,0.00090402,43339.0,43335.0,0.12054945]
[1644565223470,0.00090402,43339.0,43335.0,0.12117492]
[1644565224118,0.00090402,43339.0,43335.0,0.11608092]
[1644565224320,0.057734,43338.0,43335.0,0.11545545]
[1644565224516,0.057734,43338.0,43335.0,0.11608092]
[1644565225319,0.05745624,43338.0,43337.0,0.322196]